[Event "Open"]
[Site "Tallinn, EE"]
[Date "2024.12.14"]
[Round "2.1"]
[White "Kull, Tormi"]
[Black "Volodin, Aleksandr"]
[Result "0-1"]
[Board "1"]
[TimeControl "40/5400+30"]
[WhiteFideId "4510151"]
[BlackFideId "4501950"]
[WhiteTitle "CM"]
[BlackTitle "GM"]
[WhiteElo "2233"]
[BlackElo "2466"]
[WhiteTeam "EST"]
[BlackTeam "EST"]
[WhiteClock "0:25:42"]
[BlackClock "0:09:57"]
[Variant "Standard"]

1. c4 {[%clk 1:30:57]}  e6 {[%clk 1:30:49]} 2. g3 {[%clk 1:31:20]}  d5 {[%clk 1:31:10]} 3. Bg2 {[%clk 1:31:41]}  Nf6 {[%clk 1:30:34]} 4. Nf3 {[%clk 1:32:01]}  Be7 {[%clk 1:28:39]} 5. b3 {[%clk 1:27:59]}  a5 {[%clk 1:24:45]} 6. Bb2 {[%clk 1:24:20]}  c6 {[%clk 1:24:57]} 7. O-O {[%clk 1:23:19]}  O-O {[%clk 1:07:44]} 8. Qc2 {[%clk 1:22:26]}  a4 {[%clk 1:02:49]} 9. bxa4 {[%clk 1:12:06]}  Qa5 {[%clk 1:02:56]} 10. Nc3 {[%clk 1:10:27]}  dxc4 {[%clk 1:01:16]} 11. Rfc1 {[%clk 1:04:37]}  Nbd7 {[%clk 0:58:52]} 12. Ne4 {[%clk 0:59:26]}  Qxa4 {[%clk 0:39:39]} 13. Nxf6+ {[%clk 0:58:31]}  Nxf6 {[%clk 0:34:41]} 14. Qxc4 {[%clk 0:55:03]}  Qxc4 {[%clk 0:34:36]} 15. Rxc4 {[%clk 0:55:24]}  Rd8 {[%clk 0:34:41]} 16. d3 {[%clk 0:50:34]}  Nd5 {[%clk 0:34:49]} 17. Be5 {[%clk 0:47:07]}  f6 {[%clk 0:34:51]} 18. Bd4 {[%clk 0:47:12]}  Ra3 {[%clk 0:27:32]} 19. Bb2 {[%clk 0:46:25]}  Ra6 {[%clk 0:27:32]} 20. Nd4 {[%clk 0:40:16]}  Bd7 {[%clk 0:23:34]} 21. Nb3 {[%clk 0:38:57]}  Rda8 {[%clk 0:23:47]} 22. Nc1 {[%clk 0:36:35]}  Kf7 {[%clk 0:22:03]} 23. Bxd5 {[%clk 0:32:55]}  exd5 {[%clk 0:21:52]} 24. Rc2 {[%clk 0:32:04]}  c5 {[%clk 0:21:36]} 25. e4 {[%clk 0:30:03]}  dxe4 {[%clk 0:18:37]} 26. dxe4 {[%clk 0:29:53]}  b5 {[%clk 0:18:49]} 27. e5 {[%clk 0:28:45]}  c4 {[%clk 0:19:09]} 28. exf6 {[%clk 0:28:53]}  gxf6 {[%clk 0:19:17]} 29. Bd4 {[%clk 0:27:06]}  Bf5 {[%clk 0:19:22]} 30. Rc3 {[%clk 0:26:46]}  Rd8 {[%clk 0:19:11]} 31. Rf3 {[%clk 0:25:34]}  Bh3 {[%clk 0:09:36]} 32. Rf4 {[%clk 0:25:37]}  Re6 {[%clk 0:09:56]} 33. f3 {[%clk 0:25:42]}  Rxd4 {[%clk 0:09:57]} 0-1

[Event "Open"]
[Site "Tallinn, EE"]
[Date "2024.12.15"]
[Round "2.2"]
[White "Volodin, Aleksandr"]
[Black "Kull, Tormi"]
[Result "1-0"]
[Board "1"]
[TimeControl "40/5400+30"]
[WhiteFideId "4501950"]
[BlackFideId "4510151"]
[WhiteTitle "GM"]
[BlackTitle "CM"]
[WhiteElo "2466"]
[BlackElo "2233"]
[WhiteTeam "EST"]
[BlackTeam "EST"]
[WhiteClock "0:09:57"]
[BlackClock "0:32:30"]
[Variant "Standard"]

1. d4 {[%clk 1:29:44]}  Nf6 {[%clk 1:30:56]} 2. c4 {[%clk 1:30:06]}  g6 {[%clk 1:31:19]} 3. g3 {[%clk 1:30:32]}  Bg7 {[%clk 1:31:42]} 4. Bg2 {[%clk 1:30:57]}  O-O {[%clk 1:32:04]} 5. Nf3 {[%clk 1:31:07]}  d6 {[%clk 1:32:20]} 6. O-O {[%clk 1:31:31]}  Nbd7 {[%clk 1:32:42]} 7. Nc3 {[%clk 1:30:29]}  e5 {[%clk 1:33:05]} 8. e4 {[%clk 1:30:55]}  c6 {[%clk 1:31:53]} 9. h3 {[%clk 1:28:22]}  Qb6 {[%clk 1:31:33]} 10. Re1 {[%clk 1:19:47]}  exd4 {[%clk 1:30:57]} 11. Nxd4 {[%clk 1:19:24]}  Re8 {[%clk 1:29:53]} 12. Na4 {[%clk 1:10:47]}  Qa6 {[%clk 1:22:55]} 13. b3 {[%clk 1:08:42]}  Nc5 {[%clk 1:18:06]} 14. Nc3 {[%clk 1:00:18]}  Nfd7 {[%clk 1:16:13]} 15. Be3 {[%clk 0:54:05]}  Qa5 {[%clk 1:07:48]} 16. Qc2 {[%clk 0:53:25]}  Ne5 {[%clk 0:57:29]} 17. Rad1 {[%clk 0:52:56]}  Qb4 {[%clk 0:48:10]} 18. f4 {[%clk 0:38:14]}  Ned7 {[%clk 0:47:44]} 19. Nb1 {[%clk 0:26:12]}  a5 {[%clk 0:46:57]} 20. a3 {[%clk 0:25:21]}  Qb6 {[%clk 0:47:19]} 21. Nd2 {[%clk 0:23:34]}  Nf6 {[%clk 0:40:56]} 22. Bf2 {[%clk 0:23:37]}  h5 {[%clk 0:40:02]} 23. N4f3 {[%clk 0:21:50]}  Qc7 {[%clk 0:37:42]} 24. Ng5 {[%clk 0:18:05]}  Ne6 {[%clk 0:36:33]} 25. Ndf3 {[%clk 0:18:05]}  Nxg5 {[%clk 0:30:22]} 26. Nxg5 {[%clk 0:18:31]}  c5 {[%clk 0:27:33]} 27. Qd2 {[%clk 0:15:15]}  a4 {[%clk 0:26:02]} 28. b4 {[%clk 0:15:35]}  cxb4 {[%clk 0:26:15]} 29. Qxb4 {[%clk 0:16:00]}  Ra6 {[%clk 0:26:00]} 30. c5 {[%clk 0:12:11]}  dxc5 {[%clk 0:25:12]} 31. Bxc5 {[%clk 0:12:20]}  Nd7 {[%clk 0:23:05]} 32. Bd4 {[%clk 0:10:32]}  Bxd4+ {[%clk 0:22:58]} 33. Qxd4 {[%clk 0:10:36]}  Qc5 {[%clk 0:21:22]} 34. e5 {[%clk 0:08:46]}  Qxa3 {[%clk 0:21:17]} 35. Ne4 {[%clk 0:09:04]}  Rf8 {[%clk 0:19:19]} 36. Ra1 {[%clk 0:07:04]}  Qb3 {[%clk 0:19:14]} 37. Reb1 {[%clk 0:07:08]}  Qc2 {[%clk 0:18:57]} 38. Rc1 {[%clk 0:07:23]}  Qb3 {[%clk 0:18:27]} 39. Rab1 {[%clk 0:03:14]}  Qe6 {[%clk 0:18:14]} 40. Nd6 {[%clk 0:17:50]}  Rc6 {[%clk 0:31:48]} 41. Bxc6 {[%clk 0:14:39]}  bxc6 {[%clk 0:31:49]} 42. Rxc6 {[%clk 0:15:02]}  Qxh3 {[%clk 0:31:49]} 43. Qf2 {[%clk 0:14:37]}  Nxe5 {[%clk 0:31:19]} 44. Rxc8 {[%clk 0:11:23]}  Rxc8 {[%clk 0:31:26]} 45. Nxc8 {[%clk 0:11:51]}  Nd3 {[%clk 0:31:47]} 46. Ne7+ {[%clk 0:11:13]}  Kf8 {[%clk 0:32:09]} 47. Nxg6+ {[%clk 0:09:38]}  fxg6 {[%clk 0:32:31]} 48. Rb8+ {[%clk 0:10:02]}  Kf7 {[%clk 0:32:46]} 49. Qa7+ {[%clk 0:10:21]}  Ke6 {[%clk 0:33:09]} 50. Qe3+ {[%clk 0:09:57]}  Kd5 {[%clk 0:32:30]} 1-0

[Event "Open"]
[Site "Tallinn, EE"]
[Date "2024.12.14"]
[Round "2.1"]
[White "Narva, Mai"]
[Black "Rychagov, Nikita"]
[Result "1/2-1/2"]
[Board "2"]
[TimeControl "40/5400+30"]
[WhiteFideId "4500512"]
[BlackFideId "4508394"]
[WhiteTitle "IM"]
[BlackTitle "CM"]
[WhiteElo "2413"]
[BlackElo "2240"]
[WhiteTeam "EST"]
[BlackTeam "EST"]
[WhiteClock "0:02:37"]
[BlackClock "0:20:45"]
[Variant "Standard"]

1. e4 {[%clk 1:30:57]}  e5 {[%clk 1:30:54]} 2. Nf3 {[%clk 1:31:18]}  Nc6 {[%clk 1:31:15]} 3. Bb5 {[%clk 1:31:36]}  a6 {[%clk 1:31:14]} 4. Ba4 {[%clk 1:31:59]}  Nf6 {[%clk 1:31:37]} 5. O-O {[%clk 1:32:08]}  b5 {[%clk 1:31:17]} 6. Bb3 {[%clk 1:32:31]}  Bb7 {[%clk 1:31:41]} 7. d3 {[%clk 1:32:25]}  Bc5 {[%clk 1:32:03]} 8. Be3 {[%clk 1:32:37]}  d6 {[%clk 1:23:13]} 9. Bxc5 {[%clk 1:23:48]}  dxc5 {[%clk 1:23:35]} 10. Nc3 {[%clk 1:23:59]}  O-O {[%clk 1:19:48]} 11. a4 {[%clk 1:23:38]}  b4 {[%clk 1:19:16]} 12. Nd5 {[%clk 1:23:42]}  Bc8 {[%clk 1:08:31]} 13. Nxf6+ {[%clk 1:14:14]}  Qxf6 {[%clk 1:08:56]} 14. Bd5 {[%clk 1:14:21]}  Bg4 {[%clk 1:07:46]} 15. h3 {[%clk 1:13:53]}  Bxf3 {[%clk 1:08:12]} 16. Qxf3 {[%clk 1:14:13]}  Qd6 {[%clk 1:08:31]} 17. c3 {[%clk 1:13:07]}  Rab8 {[%clk 1:01:50]} 18. a5 {[%clk 1:01:48]}  Rb5 {[%clk 0:53:10]} 19. Qg3 {[%clk 0:48:37]}  Ne7 {[%clk 0:40:51]} 20. Bc4 {[%clk 0:48:51]}  Rbb8 {[%clk 0:41:19]} 21. f4 {[%clk 0:45:43]}  Ng6 {[%clk 0:40:35]} 22. f5 {[%clk 0:41:42]}  Nf4 {[%clk 0:40:31]} 23. Rf2 {[%clk 0:41:13]}  bxc3 {[%clk 0:40:35]} 24. bxc3 {[%clk 0:41:38]}  Rfd8 {[%clk 0:38:57]} 25. Rd1 {[%clk 0:39:34]}  Qh6 {[%clk 0:35:08]} 26. Qe3 {[%clk 0:35:22]}  Qh5 {[%clk 0:33:38]} 27. Rdf1 {[%clk 0:30:40]}  Qg5 {[%clk 0:33:58]} 28. Kh2 {[%clk 0:29:59]}  h5 {[%clk 0:30:19]} 29. Qxc5 {[%clk 0:21:12]}  Nxd3 {[%clk 0:30:24]} 30. Bxd3 {[%clk 0:21:34]}  Rxd3 {[%clk 0:30:51]} 31. Qxe5 {[%clk 0:18:24]}  h4 {[%clk 0:27:07]} 32. Kh1 {[%clk 0:18:25]}  Qg3 {[%clk 0:18:29]} 33. Qxg3 {[%clk 0:11:48]}  hxg3 {[%clk 0:18:48]} 34. Rf3 {[%clk 0:12:12]}  Rbd8 {[%clk 0:19:02]} 35. Kg1 {[%clk 0:07:11]}  Kh7 {[%clk 0:16:17]} 36. e5 {[%clk 0:04:15]}  Kg8 {[%clk 0:13:39]} 37. Re1 {[%clk 0:03:59]}  Kf8 {[%clk 0:12:37]} 38. f6 {[%clk 0:02:44]}  Rxf3 {[%clk 0:10:25]} 39. gxf3 {[%clk 0:02:14]}  gxf6 {[%clk 0:10:43]} 40. exf6 {[%clk 0:17:40]}  Rd6 {[%clk 0:25:17]} 41. Kg2 {[%clk 0:07:11]}  Rxf6 {[%clk 0:25:39]} 42. Rb1 {[%clk 0:06:00]}  Rc6 {[%clk 0:25:27]} 43. Rb8+ {[%clk 0:06:07]}  Kg7 {[%clk 0:24:32]} 44. Ra8 {[%clk 0:06:28]}  Rxc3 {[%clk 0:24:27]} 45. Rxa6 {[%clk 0:06:45]}  Ra3 {[%clk 0:24:45]} 46. Kxg3 {[%clk 0:05:44]}  c5 {[%clk 0:24:51]} 47. Ra8 {[%clk 0:06:04]}  c4 {[%clk 0:25:10]} 48. Rc8 {[%clk 0:06:21]}  Rxa5 {[%clk 0:25:28]} 49. Rxc4 {[%clk 0:06:46]}  Ra1 {[%clk 0:24:51]} 50. h4 {[%clk 0:06:43]}  Rg1+ {[%clk 0:25:01]} 51. Kf4 {[%clk 0:07:07]}  Ra1 {[%clk 0:24:26]} 52. Rc5 {[%clk 0:07:08]}  Ra4+ {[%clk 0:24:46]} 53. Kg3 {[%clk 0:07:13]}  Kg6 {[%clk 0:24:06]} 54. Rg5+ {[%clk 0:06:27]}  Kf6 {[%clk 0:23:48]} 55. Kh3 {[%clk 0:03:34]}  Rb4 {[%clk 0:23:17]} 56. Rg4 {[%clk 0:03:46]}  Rb5 {[%clk 0:23:28]} 57. Ra4 {[%clk 0:04:01]}  Kg6 {[%clk 0:23:08]} 58. Kg4 {[%clk 0:04:16]}  Rb1 {[%clk 0:21:03]} 59. Ra6+ {[%clk 0:04:29]}  Kg7 {[%clk 0:21:14]} 60. f4 {[%clk 0:03:08]}  Rg1+ {[%clk 0:21:34]} 61. Kh5 {[%clk 0:03:21]}  Rf1 {[%clk 0:21:38]} 62. Ra4 {[%clk 0:03:46]}  Rf2 {[%clk 0:21:06]} 63. Kg4 {[%clk 0:04:03]}  Rg2+ {[%clk 0:21:23]} 64. Kf3 {[%clk 0:04:08]}  Rh2 {[%clk 0:21:29]} 65. Kg3 {[%clk 0:04:10]}  Rh1 {[%clk 0:21:50]} 66. Ra5 {[%clk 0:04:13]}  Rg1+ {[%clk 0:21:12]} 67. Kf3 {[%clk 0:04:30]}  Rf1+ {[%clk 0:21:09]} 68. Kg4 {[%clk 0:04:52]}  Rg1+ {[%clk 0:21:16]} 69. Kh5 {[%clk 0:05:14]}  Rf1 {[%clk 0:20:49]} 70. Ra4 {[%clk 0:02:24]}  Rf2 {[%clk 0:20:45]} 71. Rb4 {[%clk 0:02:37]} 1/2-1/2

[Event "Open"]
[Site "Tallinn, EE"]
[Date "2024.12.15"]
[Round "2.2"]
[White "Rychagov, Nikita"]
[Black "Narva, Mai"]
[Result "1/2-1/2"]
[Board "2"]
[TimeControl "40/5400+30"]
[WhiteFideId "4508394"]
[BlackFideId "4500512"]
[WhiteTitle "CM"]
[BlackTitle "IM"]
[WhiteElo "2240"]
[BlackElo "2413"]
[WhiteTeam "EST"]
[BlackTeam "EST"]
[WhiteClock "0:24:34"]
[BlackClock "0:16:37"]
[Variant "Standard"]

1. e4 {[%clk 1:30:58]}  e5 {[%clk 1:30:53]} 2. Nf3 {[%clk 1:31:26]}  Nc6 {[%clk 1:31:14]} 3. Bb5 {[%clk 1:31:53]}  a6 {[%clk 1:31:35]} 4. Ba4 {[%clk 1:32:21]}  d6 {[%clk 1:31:52]} 5. O-O {[%clk 1:31:53]}  Bd7 {[%clk 1:32:15]} 6. c3 {[%clk 1:32:15]}  Nge7 {[%clk 1:32:35]} 7. d4 {[%clk 1:32:27]}  Ng6 {[%clk 1:32:58]} 8. Bc2 {[%clk 1:32:19]}  Be7 {[%clk 1:32:21]} 9. a4 {[%clk 1:32:20]}  O-O {[%clk 1:30:05]} 10. d5 {[%clk 1:29:19]}  Nb8 {[%clk 1:30:19]} 11. a5 {[%clk 1:29:45]}  f5 {[%clk 1:27:17]} 12. exf5 {[%clk 1:30:09]}  Bxf5 {[%clk 1:27:41]} 13. Bxf5 {[%clk 1:30:30]}  Rxf5 {[%clk 1:28:06]} 14. c4 {[%clk 1:30:41]}  Nd7 {[%clk 1:24:54]} 15. Ra3 {[%clk 1:27:43]}  Qe8 {[%clk 1:17:31]} 16. Nc3 {[%clk 1:21:04]}  Nf4 {[%clk 1:12:41]} 17. Ne2 {[%clk 1:03:34]}  g5 {[%clk 0:57:48]} 18. Ng3 {[%clk 0:58:15]}  Rf8 {[%clk 0:57:57]} 19. Bxf4 {[%clk 0:55:59]}  Rxf4 {[%clk 0:52:53]} 20. Nd2 {[%clk 0:55:10]}  Qg6 {[%clk 0:51:33]} 21. Ne2 {[%clk 0:53:55]}  Rf7 {[%clk 0:51:18]} 22. Qb1 {[%clk 0:52:05]}  Qg7 {[%clk 0:48:29]} 23. Ne4 {[%clk 0:52:16]}  h5 {[%clk 0:42:25]} 24. b4 {[%clk 0:46:00]}  g4 {[%clk 0:40:36]} 25. b5 {[%clk 0:45:09]}  Rb8 {[%clk 0:40:01]} 26. Rb3 {[%clk 0:42:21]}  Rff8 {[%clk 0:40:14]} 27. h3 {[%clk 0:37:48]}  Qg6 {[%clk 0:31:30]} 28. Qd3 {[%clk 0:29:27]}  Kh8 {[%clk 0:26:20]} 29. hxg4 {[%clk 0:27:32]}  hxg4 {[%clk 0:24:54]} 30. Rfb1 {[%clk 0:27:12]}  Kg7 {[%clk 0:20:10]} 31. bxa6 {[%clk 0:20:56]}  bxa6 {[%clk 0:20:34]} 32. Rb7 {[%clk 0:20:52]}  Bh4 {[%clk 0:16:40]} 33. g3 {[%clk 0:20:08]}  Rf3 {[%clk 0:16:12]} 34. Qc2 {[%clk 0:19:22]}  Rxb7 {[%clk 0:15:55]} 35. Rxb7 {[%clk 0:19:48]}  Bd8 {[%clk 0:16:16]} 36. Rb2 {[%clk 0:16:03]}  Ra3 {[%clk 0:14:38]} 37. Qb1 {[%clk 0:10:25]}  Rxa5 {[%clk 0:14:35]} 38. N2c3 {[%clk 0:10:36]}  Nc5 {[%clk 0:08:52]} 39. Rb8 {[%clk 0:10:13]}  Nxe4 {[%clk 0:01:33]} 40. Nxe4 {[%clk 0:25:39]}  Be7 {[%clk 0:16:47]} 41. Rb7 {[%clk 0:24:44]}  Bd8 {[%clk 0:15:53]} 42. Rb8 {[%clk 0:24:23]}  Be7 {[%clk 0:16:13]} 43. Rb7 {[%clk 0:24:10]}  Bd8 {[%clk 0:16:37]} 44. Rb8 {[%clk 0:24:34]} 1/2-1/2

[Event "Open"]
[Site "Tallinn, EE"]
[Date "2024.12.15"]
[Round "2.3"]
[White "Rychagov, Nikita"]
[Black "Narva, Mai"]
[Result "0-1"]
[Board "2"]
[TimeControl "900+3"]
[WhiteFideId "4508394"]
[BlackFideId "4500512"]
[WhiteTitle "CM"]
[BlackTitle "IM"]
[WhiteElo "2310"]
[BlackElo "2384"]
[WhiteTeam "EST"]
[BlackTeam "EST"]
[WhiteClock "0:02:30"]
[BlackClock "0:02:39"]
[Variant "Standard"]

1. e4 {[%clk 0:15:06]}  c5 {[%clk 0:15:03]} 2. Nf3 {[%clk 0:15:07]}  Nc6 {[%clk 0:15:05]} 3. d4 {[%clk 0:15:10]}  cxd4 {[%clk 0:15:06]} 4. Nxd4 {[%clk 0:15:12]}  Nf6 {[%clk 0:15:07]} 5. Nc3 {[%clk 0:15:14]}  e5 {[%clk 0:15:08]} 6. Ndb5 {[%clk 0:15:17]}  d6 {[%clk 0:15:09]} 7. Bg5 {[%clk 0:15:19]}  a6 {[%clk 0:15:06]} 8. Na3 {[%clk 0:15:21]}  b5 {[%clk 0:14:56]} 9. Nd5 {[%clk 0:15:23]}  Be7 {[%clk 0:14:58]} 10. Bxf6 {[%clk 0:15:25]}  Bxf6 {[%clk 0:14:59]} 11. c3 {[%clk 0:15:27]}  O-O {[%clk 0:14:57]} 12. Nc2 {[%clk 0:15:26]}  Bg5 {[%clk 0:14:56]} 13. a4 {[%clk 0:15:23]}  bxa4 {[%clk 0:14:53]} 14. Rxa4 {[%clk 0:15:25]}  a5 {[%clk 0:14:48]} 15. Bc4 {[%clk 0:15:26]}  Rb8 {[%clk 0:14:47]} 16. b3 {[%clk 0:15:29]}  Kh8 {[%clk 0:14:46]} 17. Nce3 {[%clk 0:12:53]}  Bxe3 {[%clk 0:14:43]} 18. Nxe3 {[%clk 0:12:54]}  Ne7 {[%clk 0:14:44]} 19. O-O {[%clk 0:12:30]}  f5 {[%clk 0:14:44]} 20. exf5 {[%clk 0:12:31]}  Bxf5 {[%clk 0:14:45]} 21. Ra2 {[%clk 0:10:31]}  Be4 {[%clk 0:14:45]} 22. Qg4 {[%clk 0:10:05]}  d5 {[%clk 0:11:53]} 23. Rd2 {[%clk 0:10:08]}  Qc7 {[%clk 0:11:27]} 24. Nxd5 {[%clk 0:09:32]}  Bxd5 {[%clk 0:11:16]} 25. Bxd5 {[%clk 0:09:34]}  Qxc3 {[%clk 0:10:46]} 26. Rdd1 {[%clk 0:08:55]}  Nxd5 {[%clk 0:09:13]} 27. Rxd5 {[%clk 0:08:58]}  Rxb3 {[%clk 0:09:10]} 28. Rd7 {[%clk 0:09:00]}  Rg8 {[%clk 0:09:07]} 29. h4 {[%clk 0:08:08]}  Rb4 {[%clk 0:08:49]} 30. Qg5 {[%clk 0:08:10]}  h6 {[%clk 0:08:29]} 31. Qe7 {[%clk 0:08:13]}  a4 {[%clk 0:07:56]} 32. Rc7 {[%clk 0:07:14]}  Qd4 {[%clk 0:07:41]} 33. Rd7 {[%clk 0:06:23]}  Qb2 {[%clk 0:06:58]} 34. Rd8 {[%clk 0:04:26]}  a3 {[%clk 0:03:44]} 35. Rxg8+ {[%clk 0:04:25]}  Kxg8 {[%clk 0:03:46]} 36. Qd8+ {[%clk 0:03:03]}  Kh7 {[%clk 0:03:46]} 37. Qd3+ {[%clk 0:03:05]}  e4 {[%clk 0:03:43]} 38. Qd5 {[%clk 0:03:07]}  Rb8 {[%clk 0:02:37]} 39. Qxe4+ {[%clk 0:02:30]}  Kh8 {[%clk 0:02:39]} 0-1

[Event "Open"]
[Site "Tallinn, EE"]
[Date "2024.12.15"]
[Round "2.4"]
[White "Narva, Mai"]
[Black "Rychagov, Nikita"]
[Result "1-0"]
[Board "2"]
[TimeControl "900+3"]
[WhiteFideId "4500512"]
[BlackFideId "4508394"]
[WhiteTitle "IM"]
[BlackTitle "CM"]
[WhiteElo "2384"]
[BlackElo "2310"]
[WhiteTeam "EST"]
[BlackTeam "EST"]
[WhiteClock "0:10:21"]
[BlackClock "0:08:49"]
[Variant "Standard"]

1. e4 {[%clk 0:15:05]}  e5 {[%clk 0:15:06]} 2. Nf3 {[%clk 0:15:06]}  Nc6 {[%clk 0:15:08]} 3. Bb5 {[%clk 0:15:06]}  a6 {[%clk 0:15:10]} 4. Ba4 {[%clk 0:15:08]}  Nf6 {[%clk 0:15:08]} 5. O-O {[%clk 0:15:08]}  Nxe4 {[%clk 0:15:05]} 6. d4 {[%clk 0:15:08]}  b5 {[%clk 0:15:03]} 7. Bb3 {[%clk 0:15:10]}  d5 {[%clk 0:15:06]} 8. dxe5 {[%clk 0:15:11]}  Be6 {[%clk 0:15:08]} 9. Be3 {[%clk 0:15:10]}  Be7 {[%clk 0:15:01]} 10. c3 {[%clk 0:15:10]}  O-O {[%clk 0:14:53]} 11. Nbd2 {[%clk 0:15:10]}  Bg4 {[%clk 0:14:47]} 12. Nxe4 {[%clk 0:15:08]}  dxe4 {[%clk 0:14:49]} 13. Qd5 {[%clk 0:15:04]}  exf3 {[%clk 0:13:19]} 14. Qxc6 {[%clk 0:15:05]}  fxg2 {[%clk 0:13:19]} 15. Qxg2 {[%clk 0:15:03]}  Qd7 {[%clk 0:12:37]} 16. Bh6 {[%clk 0:14:57]}  gxh6 {[%clk 0:11:56]} 17. f3 {[%clk 0:14:58]}  Kh8 {[%clk 0:11:54]} 18. fxg4 {[%clk 0:14:47]}  Bc5+ {[%clk 0:10:50]} 19. Kh1 {[%clk 0:14:48]}  Rae8 {[%clk 0:10:51]} 20. Rae1 {[%clk 0:13:05]}  h5 {[%clk 0:10:11]} 21. g5 {[%clk 0:11:51]}  Qe7 {[%clk 0:09:49]} 22. Rf6 {[%clk 0:10:53]}  Bd6 {[%clk 0:09:23]} 23. Bc2 {[%clk 0:10:34]}  Rg8 {[%clk 0:08:47]} 24. Qe4 {[%clk 0:10:27]}  Rg7 {[%clk 0:08:49]} 25. exd6 {[%clk 0:10:21]} 1-0

[Event "Open"]
[Site "Tallinn, EE"]
[Date "2024.12.14"]
[Round "2.1"]
[White "Timoshin, Andrei"]
[Black "Obolonin, Filipp"]
[Result "0-1"]
[Board "3"]
[TimeControl "40/5400+30"]
[WhiteFideId "4503503"]
[BlackFideId "4505549"]
[WhiteElo "2207"]
[BlackElo "2009"]
[WhiteTeam "EST"]
[BlackTeam "EST"]
[WhiteClock "0:00:55"]
[BlackClock "0:50:57"]
[Variant "Standard"]

1. e4 {[%clk 1:30:57]}  c5 {[%clk 1:30:45]} 2. c3 {[%clk 1:31:15]}  e6 {[%clk 1:31:07]} 3. d4 {[%clk 1:31:35]}  d5 {[%clk 1:30:57]} 4. exd5 {[%clk 1:31:16]}  Qxd5 {[%clk 1:31:16]} 5. Nf3 {[%clk 1:30:51]}  Nc6 {[%clk 1:31:36]} 6. Be3 {[%clk 1:30:32]}  cxd4 {[%clk 1:31:59]} 7. cxd4 {[%clk 1:30:46]}  Nf6 {[%clk 1:32:13]} 8. Nc3 {[%clk 1:30:19]}  Qa5 {[%clk 1:31:44]} 9. Bd3 {[%clk 1:26:49]}  Be7 {[%clk 1:29:52]} 10. O-O {[%clk 1:26:31]}  O-O {[%clk 1:30:16]} 11. a3 {[%clk 1:24:52]}  Qd8 {[%clk 1:27:48]} 12. Bc2 {[%clk 1:16:45]}  b6 {[%clk 1:27:09]} 13. Qd3 {[%clk 1:10:58]}  Bb7 {[%clk 1:25:49]} 14. Rfd1 {[%clk 1:09:16]}  g6 {[%clk 1:25:55]} 15. Bh6 {[%clk 0:56:06]}  Re8 {[%clk 1:25:53]} 16. Bb3 {[%clk 0:55:39]}  Bf8 {[%clk 1:23:09]} 17. Bxf8 {[%clk 0:46:33]}  Rxf8 {[%clk 1:23:31]} 18. Ne5 {[%clk 0:31:13]}  Ne7 {[%clk 1:18:56]} 19. Re1 {[%clk 0:27:43]}  Ned5 {[%clk 1:18:44]} 20. Nxd5 {[%clk 0:27:52]}  Bxd5 {[%clk 1:18:57]} 21. Ba4 {[%clk 0:27:55]}  a6 {[%clk 1:16:56]} 22. Rec1 {[%clk 0:25:18]}  b5 {[%clk 1:17:03]} 23. Bd1 {[%clk 0:25:45]}  Qd6 {[%clk 1:13:11]} 24. Be2 {[%clk 0:20:04]}  Rac8 {[%clk 1:10:50]} 25. Qg3 {[%clk 0:19:05]}  Kg7 {[%clk 1:10:43]} 26. Qf4 {[%clk 0:19:19]}  Qe7 {[%clk 1:09:00]} 27. g4 {[%clk 0:17:17]}  h6 {[%clk 1:05:38]} 28. h4 {[%clk 0:16:29]}  Ne4 {[%clk 1:04:47]} 29. Bd3 {[%clk 0:14:20]}  g5 {[%clk 1:03:25]} 30. Qe3 {[%clk 0:13:17]}  Nd6 {[%clk 1:02:10]} 31. h5 {[%clk 0:05:22]}  Ba8 {[%clk 1:01:06]} 32. f3 {[%clk 0:04:21]}  Rfd8 {[%clk 1:00:09]} 33. Rxc8 {[%clk 0:04:21]}  Rxc8 {[%clk 1:00:31]} 34. Re1 {[%clk 0:03:45]}  Bd5 {[%clk 0:59:18]} 35. Bb1 {[%clk 0:03:46]}  Nc4 {[%clk 0:57:53]} 36. Qd3 {[%clk 0:03:31]}  Rh8 {[%clk 0:58:13]} 37. Nxc4 {[%clk 0:02:45]}  bxc4 {[%clk 0:58:18]} 38. Qe3 {[%clk 0:02:56]}  Qf6 {[%clk 0:58:34]} 39. Be4 {[%clk 0:00:48]}  Rb8 {[%clk 0:58:33]} 40. Qf2 {[%clk 0:15:35]}  Qf4 {[%clk 1:12:31]} 41. Kg2 {[%clk 0:06:35]}  Rb3 {[%clk 1:10:33]} 42. Re2 {[%clk 0:05:25]}  Bxe4 {[%clk 1:06:17]} 43. Rxe4 {[%clk 0:05:41]}  Qc1 {[%clk 1:06:43]} 44. Re2 {[%clk 0:05:18]}  c3 {[%clk 1:07:07]} 45. d5 {[%clk 0:01:03]}  Rxb2 {[%clk 1:07:09]} 46. dxe6 {[%clk 0:00:47]}  Rxe2 {[%clk 0:55:32]} 47. Qxe2 {[%clk 0:01:16]}  Kf8 {[%clk 0:52:44]} 48. Qe5 {[%clk 0:00:38]}  Qd2+ {[%clk 0:52:11]} 49. Kh3 {[%clk 0:01:05]}  Ke7 {[%clk 0:49:26]} 50. exf7+ {[%clk 0:01:05]}  Kxf7 {[%clk 0:49:51]} 51. Qc7+ {[%clk 0:01:00]}  Ke6 {[%clk 0:50:07]} 52. Qc6+ {[%clk 0:00:49]}  Ke5 {[%clk 0:50:31]} 53. Qe4+ {[%clk 0:01:13]}  Kd6 {[%clk 0:50:58]} 54. Qb4+ {[%clk 0:01:33]}  Kc7 {[%clk 0:49:45]} 55. Qc5+ {[%clk 0:01:38]}  Kd7 {[%clk 0:50:00]} 56. Qa7+ {[%clk 0:01:26]}  Kc6 {[%clk 0:50:03]} 57. Qxa6+ {[%clk 0:00:51]}  Kc5 {[%clk 0:50:27]} 58. Qa5+ {[%clk 0:00:37]}  Kd4 {[%clk 0:50:23]} 59. Qa7+ {[%clk 0:00:33]}  Kd3 {[%clk 0:50:45]} 60. Qh7+ {[%clk 0:00:52]}  Ke3 {[%clk 0:51:04]} 61. Qe4+ {[%clk 0:00:35]}  Kf2 {[%clk 0:51:16]} 62. Qe5 {[%clk 0:00:36]}  Kxf3 {[%clk 0:50:38]} 63. Qg3+ {[%clk 0:00:32]}  Ke4 {[%clk 0:50:57]} 64. Qb8 {[%clk 0:00:34]}  c2 {[%clk 0:50:40]} 65. Qe8+ {[%clk 0:00:39]}  Kf3 {[%clk 0:50:56]} 66. Qc6+ {[%clk 0:00:55]}  Ke2 {[%clk 0:51:19]} 67. Qg2+ {[%clk 0:01:10]}  Ke3 {[%clk 0:50:52]} 68. Qg1+ {[%clk 0:00:54]}  Kd3 {[%clk 0:50:20]} 69. Qf1+ {[%clk 0:01:05]}  Qe2 {[%clk 0:50:46]} 70. Qf5+ {[%clk 0:01:30]}  Kd2 {[%clk 0:51:05]} 71. Qa5+ {[%clk 0:01:44]}  Kd1 {[%clk 0:50:57]} 72. Qd5+ {[%clk 0:02:00]}  Ke1 {[%clk 0:49:58]} 73. Qa5+ {[%clk 0:01:24]}  Kf1 {[%clk 0:50:22]} 74. Qf5+ {[%clk 0:01:40]}  Kg1 {[%clk 0:50:33]} 75. Qc5+ {[%clk 0:00:55]}  Qf2 {[%clk 0:50:57]} 0-1